fUSD/lending_fUSD_20250123
["ID","MTS","AMOUNT","RATE_DAILY","PERIOD"]
[350140622,1737649849495,-500.0,0.00017605,2]
[350140623,1737649849504,-500.0,0.00017605,2]
[350140624,1737649849516,-500.0,0.00017605,2]
[350140625,1737649849528,-500.0,0.00017605,2]
[350140626,1737649849537,-500.0,0.00017605,2]
[350140627,1737649849546,-564.18460525,0.00017605,2]
[350140628,1737649849556,-500.0,0.00017605,2]
[350140629,1737649849565,-500.0,0.00017605,2]
[350140630,1737649849575,-252.64,0.00017605,2]
[350140631,1737649849584,-500.0,0.00017605,2]
[350140632,1737649849596,-500.0,0.00017605,2]
[350140633,1737649849605,-500.0,0.00017605,2]
[350140634,1737649849614,-500.0,0.00017605,2]
[350140635,1737649849624,-500.0,0.00017605,2]
[350140636,1737649849634,-500.0,0.00017605,2]
[350140637,1737649849644,-500.0,0.00017605,2]
[350140638,1737649849653,-500.0,0.00017605,2]
[350140639,1737649849663,-500.0,0.00017605,2]
[350140640,1737649849672,-500.0,0.00017605,2]
[350140641,1737649849681,-500.0,0.00017606,2]
[350140643,1737649849691,-292.09329976,0.00017606,2]
[350140644,1737649849700,-244.0,0.0001766,2]
[350140645,1737649849709,-160.88125198,0.00017673,2]
[350140646,1737649849719,-500.81802442,0.00017673,2]
[350140647,1737649849728,-163.41832112,0.00017673,2]
[350140648,1737649849737,-162.53122857,0.00017673,2]
[350140649,1737649849747,-151.20309228,0.00017673,2]
[350140650,1737649849756,-500.0,0.00017704,2]
[350140651,1737649849767,-1313.1570865,0.00017787,2]
[350140652,1737649849776,-1062.07364942,0.00017797,2]
[350140653,1737649849785,-500.0,0.00017808,2]
[350140654,1737649849795,-521.44,0.00017808,2]
[350140655,1737649849804,-500.0,0.00017808,2]
[350140656,1737649849814,-1279.29,0.00017808,2]
[350140657,1737649849823,-510.28,0.00017808,2]
[350140658,1737649849832,-947.08,0.00017808,2]
[350140659,1737649849841,-553.6,0.00017808,2]
[350140660,1737649849851,-847.08,0.00017808,2]
[350140661,1737649849860,-950.19,0.00017808,2]
[350140662,1737649849869,-595.85,0.00017808,2]
[350140663,1737649849879,-535.73,0.00017808,2]
[350140664,1737649849888,-1421.67,0.00017808,2]
[350140665,1737649849897,-500.0,0.00017808,2]
[350140666,1737649849906,-1179.67,0.00017808,2]
[350140667,1737649849915,-500.0,0.00017808,2]
[350140668,1737649849924,-500.0,0.00017808,2]
[350140669,1737649849934,-357.22142354,0.00017808,2]
[350140670,1737649849943,-1476.14,0.00017808,2]
[350140671,1737649849953,-977.58,0.00017808,2]
[350140672,1737649849962,-578.01,0.00017808,2]
[350140673,1737649849972,-500.0,0.00017808,2]
[350140674,1737649849982,-500.0,0.00017808,2]
[350140675,1737649849992,-1107.03,0.00017808,2]
[350140676,1737649850132,-500.0,0.00017808,2]
[350140677,1737649850142,-500.0,0.00017808,2]
[350140678,1737649850152,-500.0,0.00017808,2]
[350140679,1737649850162,-502.76,0.00017808,2]
[350140680,1737649850171,-500.0,0.00017808,2]
[350140681,1737649850181,-500.0,0.00017876,2]
[350140682,1737649850190,-452.764009,0.00017876,2]
[350140683,1737649850199,-500.0,0.00017876,2]
[350140684,1737649850208,-505.42,0.00017876,2]
[350140685,1737649850218,-278.061044,0.00017876,2]
[350140686,1737649850227,-793.57,0.00017876,2]
[350140687,1737649850236,-500.0,0.00017876,2]
[350140688,1737649850245,-1666.21,0.00017876,2]
[350140689,1737649850254,-633.72,0.00017876,2]
[350140690,1737649850266,-784.7,0.00017876,2]
[350140691,1737649850275,-1227.74,0.00017876,2]
[350140692,1737649850285,-811.43,0.00017876,2]
[350140693,1737649850294,-1177.29,0.00017876,2]
[350140694,1737649850303,-500.0,0.00017876,2]
[350140695,1737649850312,-500.0,0.00017876,2]
[350140696,1737649850321,-508.16,0.00017876,2]
[350140697,1737649850331,-1189.48,0.00017876,2]
[350140698,1737649850340,-593.34,0.00017876,2]
[350140699,1737649850350,-911.17,0.00017876,2]
[350140700,1737649850359,-534.84,0.00017876,2]
[350140701,1737649850368,-1547.12,0.00017876,2]
[350140702,1737649850377,-500.0,0.00017877,2]
[350140703,1737649850386,-500.0,0.00017877,2]
[350140704,1737649850395,-500.0,0.00017877,2]
[350140705,1737649850404,-500.0,0.00017877,2]
[350140706,1737649850413,-500.0,0.00017877,2]
[350140707,1737649850424,-500.0,0.00017877,2]
[350140708,1737649850433,-500.0,0.00017877,2]
[350140709,1737649850445,-500.0,0.00017877,2]
[350140710,1737649850457,-500.0,0.00017877,2]
[350140711,1737649850467,-500.0,0.00017877,2]
[350140712,1737649850476,-500.0,0.00017877,2]
[350140713,1737649850485,-621.53,0.00017877,2]
[350140714,1737649850494,-572.81,0.00017877,2]
[350140715,1737649850503,-500.0,0.00017877,2]
[350140716,1737649850517,-500.0,0.00017877,2]
[350140717,1737649850527,-500.0,0.00017877,2]
[350140718,1737649850536,-500.0,0.00017877,2]
[350140719,1737649850545,-500.0,0.00017877,2]
[350140720,1737649850557,-500.0,0.00017877,2]
[350140721,1737649850566,-500.0,0.00017877,2]
[350140722,1737649850575,-500.0,0.00017877,2]
[350140723,1737649850585,-500.0,0.00017877,2]
[350140724,1737649850595,-500.0,0.00017877,2]
[350140725,1737649850605,-500.0,0.00017877,2]
[350140726,1737649850614,-500.0,0.00017877,2]
[350140727,1737649850623,-500.0,0.00017877,2]
[350140728,1737649850636,-500.0,0.00017877,2]
[350140729,1737649850645,-500.0,0.00017877,2]
[350140730,1737649850654,-824.5,0.00017877,2]
[350140731,1737649850663,-500.0,0.00017877,2]
[350140732,1737649850673,-500.0,0.00017877,2]
[350140733,1737649850682,-500.0,0.00017877,2]
[350140734,1737649850692,-657.94,0.00017877,2]
[350140735,1737649850702,-500.0,0.00017877,2]
[350140736,1737649850711,-1263.57,0.00017877,2]
[350140737,1737649850721,-927.43,0.00017877,2]
[350140738,1737649850730,-500.0,0.00017877,2]
[350140739,1737649850739,-1727.96,0.00017877,2]
[350140740,1737649850748,-548.38,0.00017877,2]
[350140741,1737649850757,-2478.47,0.00017877,2]
[350140742,1737649850768,-505.2,0.00017877,2]
[350140743,1737649850777,-500.0,0.00017877,2]
[350140744,1737649850787,-500.0,0.00017877,2]
[350140745,1737649850796,-655.25,0.00017877,2]
[350140746,1737649850805,-871.19,0.00017877,2]
[350140747,1737649850814,-685.35,0.00017877,2]
[350140748,1737649850824,-510.83,0.00017877,2]
[350140749,1737649850833,-500.0,0.00017877,2]
[350140750,1737649850843,-500.0,0.00017877,2]
[350140751,1737649850853,-752.05,0.00017877,2]
[350140752,1737649850862,-500.0,0.00017877,2]
[350140753,1737649850872,-500.0,0.00017877,2]
[350140754,1737649850881,-500.0,0.00017877,2]
[350140755,1737649850891,-2502.39,0.00017877,2]
[350140756,1737649850900,-931879.61484525,0.00017878,2]
[350140757,1737649850922,-43670.89382587,0.00017878,2]
[350140758,1737649850933,-56616.20356951,0.00017878,2]
[350140759,1737649850944,-1276.67256,0.00017878,2]
[350140760,1737649851197,-172.61671403,0.00012578,2]
[350140761,1737649851207,-500.0,0.00016438,2]
[350140762,1737649851216,-500.0,0.00016438,2]
[350140763,1737649851226,-500.0,0.00016712,2]
[350140764,1737649851235,-500.0,0.00016712,2]
[350140765,1737649851243,-500.0,0.00016986,2]
[350140766,1737649851252,-500.0,0.00016986,2]
[350140767,1737649851264,-320.33243972,0.0001726,2]
[350140768,1737649851273,-500.0,0.0001733,2]
[350140769,1737649851282,-500.0,0.00017604,2]
[350140770,1737649851290,-500.0,0.00017604,2]
[350140771,1737649851300,-1572.51327125,0.00017878,2]
[350140772,1737649851470,-102182.03414661,0.00017878,2]
[350140773,1737649851485,-923.03617976,0.00017878,2]
[350140774,1737649851496,-58282.50223897,0.00017878,2]
[350140775,1737649851507,-33295.632378,0.00017878,2]
[350140776,1737649851528,-234872.8641816,0.00017878,2]
[350140777,1737649851546,-20647.66423189,0.00017878,2]
[350140778,1737649851609,-61361.93377087,0.00017878,2]
[350140779,1737649851621,-2134.2,0.00017878,2]
[350140780,1737649851632,-824.01829141,0.00017878,2]
[350140781,1737649851674,-96713.51837501,0.00017878,2]
[350140782,1737649851683,-500.0,0.00017878,2]
[350140783,1737649851692,-500.0,0.00017878,2]
[350140784,1737649851702,-500.0,0.00017878,2]
[350140785,1737649851711,-500.0,0.00017878,2]
[350140786,1737649851720,-500.0,0.00017878,2]
[350140787,1737649851729,-500.0,0.00017878,2]
[350140788,1737649851738,-500.0,0.00017878,2]
[350140789,1737649851747,-500.0,0.00017878,2]
[350140790,1737649851757,-500.0,0.00017878,2]
[350140791,1737649851769,-500.0,0.00017878,2]
[350140792,1737649851778,-500.0,0.00017878,2]
[350140793,1737649851787,-500.0,0.00017878,2]
[350140794,1737649851796,-500.0,0.00017878,2]
[350140795,1737649851805,-500.0,0.00017878,2]
[350140796,1737649851815,-500.0,0.00017878,2]
[350140797,1737649851824,-500.0,0.00017878,2]
[350140798,1737649851834,-501.6426377,0.00017878,2]
[350140799,1737649851843,-500.0,0.00017878,2]
[350140800,1737649851852,-500.0,0.00017878,2]
[350140801,1737649851861,-500.0,0.00017878,2]
[350140802,1737649851871,-500.0,0.00017878,2]
[350140803,1737649851880,-500.0,0.00017878,2]
[350140804,1737649851889,-500.0,0.00017878,2]
[350140805,1737649851899,-500.0,0.00017878,2]
[350140806,1737649851909,-500.0,0.00017878,2]
[350140807,1737649851918,-500.0,0.00017878,2]
[350140808,1737649851927,-500.0,0.00017878,2]
[350140809,1737649851936,-636.29667959,0.00017878,2]
[350140810,1737649851945,-500.0,0.00017878,2]
[350140811,1737649851954,-500.0,0.00017878,2]
[350140812,1737649851963,-500.0,0.00017878,2]
[350140813,1737649851972,-500.0,0.00017878,2]
[350140814,1737649851981,-500.0,0.00017878,2]
[350140815,1737649851991,-500.0,0.00017878,2]
[350140816,1737649851999,-500.0,0.00017878,2]
[350140817,1737649852009,-500.0,0.00017878,2]
[350140818,1737649852020,-500.0,0.00017878,2]
[350140819,1737649852029,-500.0,0.00017878,2]
[350140820,1737649852038,-510.91242949,0.00017878,2]
[350140821,1737649852047,-500.0,0.00017878,2]
[350140822,1737649852056,-500.0,0.00017878,2]
[350140823,1737649852066,-513.07,0.00017878,2]
[350140824,1737649852075,-500.0,0.00017878,2]
[350140825,1737649852084,-500.0,0.00017878,2]
[350140826,1737649852093,-500.0,0.00017878,2]
[350140827,1737649852101,-500.0,0.00017878,2]
[350140828,1737649852110,-500.0,0.00017878,2]
[350140829,1737649852119,-500.0,0.00017878,2]
[350140830,1737649852128,-500.0,0.00017878,2]
[350140831,1737649852136,-500.0,0.00017878,2]
[350140832,1737649852145,-500.0,0.00017878,2]
[350140833,1737649852154,-500.0,0.00017878,2]
[350140834,1737649852163,-500.0,0.00017878,2]
[350140835,1737649852171,-500.0,0.00017878,2]
[350140836,1737649852180,-514.9467934,0.00017878,2]
[350140837,1737649852189,-500.0,0.00017878,2]
[350140838,1737649852198,-500.0,0.00017878,2]
[350140839,1737649852207,-500.0,0.00017878,2]
[350140840,1737649852215,-500.0,0.00017878,2]
[350140841,1737649852224,-500.0,0.00017878,2]
[350140842,1737649852233,-500.0,0.00017878,2]
[350140843,1737649852242,-500.0,0.00017878,2]
[350140844,1737649852250,-500.0,0.00017878,2]
[350140845,1737649852259,-500.0,0.00017878,2]
[350140846,1737649852269,-500.0,0.00017878,2]
[350140847,1737649852278,-344.42594496,0.00017878,2]
[350140848,1737649852288,-500.0,0.00017878,2]
[350140849,1737649852298,-500.0,0.00017878,2]
[350140850,1737649852307,-500.0,0.00017878,2]
[350140851,1737649852316,-500.0,0.00017878,2]
[350140852,1737649852327,-500.0,0.00017878,2]
[350140853,1737649852336,-500.0,0.00017878,2]
[350140854,1737649852345,-500.0,0.00017878,2]
[350140855,1737649852354,-500.0,0.00017878,2]
[350140856,1737649852363,-500.0,0.00017878,2]
[350140857,1737649852372,-500.0,0.00017878,2]
[350140858,1737649852382,-500.0,0.00017878,2]
[350140859,1737649852391,-500.0,0.00017878,2]
[350140860,1737649852400,-500.0,0.00017878,2]
[350140861,1737649852409,-500.0,0.00017878,2]
[350140862,1737649852418,-500.0,0.00017878,2]
[350140863,1737649852427,-500.0,0.00017878,2]
[350140864,1737649852436,-500.0,0.00017878,2]
[350140865,1737649852445,-500.0,0.00017878,2]
[350140866,1737649852454,-500.0,0.00017878,2]
[350140867,1737649852463,-500.0,0.00017878,2]
[350140868,1737649852472,-500.0,0.00017878,2]
[350140869,1737649852602,-606.79998615,0.00017878,2]
[350140870,1737649852611,-500.0,0.00017878,2]
[350140871,1737649852621,-500.0,0.00017878,2]
[350140872,1737649852630,-500.0,0.00017878,2]
[350140873,1737649852640,-500.0,0.00017878,2]
[350140874,1737649852650,-500.0,0.00017878,2]
[350140875,1737649852660,-500.0,0.00017878,2]
[350140876,1737649852670,-500.0,0.00017878,2]
[350140877,1737649852680,-500.0,0.00017878,2]
[350140878,1737649852689,-226.19657602,0.00017878,2]
[350140879,1737649852699,-500.0,0.00017878,2]
[350140880,1737649852708,-500.0,0.00017878,2]
[350140881,1737649852717,-500.0,0.00017878,2]
[350140882,1737649852727,-500.0,0.00017878,2]
[350140883,1737649852736,-500.0,0.00017878,2]
[350140884,1737649852745,-500.0,0.00017878,2]
[350140885,1737649852755,-500.0,0.00017878,2]
[350140886,1737649852765,-500.0,0.00017878,2]
[350140887,1737649852775,-500.0,0.00017878,2]
[350140888,1737649852785,-516.40983848,0.00017878,2]
[350140889,1737649852797,-500.0,0.00017878,2]
[350140890,1737649852807,-500.0,0.00017878,2]
[350140891,1737649852817,-174.29077149,0.00017878,2]
[350140892,1737649852827,-491.87507469,0.00017878,2]
[350140893,1737649852838,-500.0,0.00017878,2]
[350140894,1737649852847,-500.0,0.00017878,2]
[350140895,1737649852857,-500.0,0.00017878,2]
[350140896,1737649852866,-500.0,0.00017878,2]
[350140897,1737649852875,-302.09,0.00017878,2]
[350140898,1737649852885,-500.0,0.00017878,2]
[350140899,1737649852894,-500.0,0.00017878,2]
[350140900,1737649852904,-500.0,0.00017878,2]
[350140901,1737649852913,-500.0,0.00017878,2]
[350140902,1737649852923,-500.0,0.00017878,2]
[350140903,1737649852932,-500.0,0.00017878,2]
[350140904,1737649852941,-500.0,0.00017878,2]
[350140905,1737649852951,-500.0,0.00017878,2]
[350140906,1737649852960,-500.0,0.00017878,2]
[350140907,1737649852970,-500.0,0.00017878,2]
[350140908,1737649852979,-500.0,0.00017878,2]
[350140909,1737649852988,-500.0,0.00017878,2]
[350140910,1737649852997,-500.0,0.00017878,2]
[350140911,1737649853013,-500.0,0.00017878,2]
[350140912,1737649853027,-500.0,0.00017878,2]
[350140913,1737649853036,-500.0,0.00017878,2]
[350140914,1737649853046,-500.0,0.00017878,2]
[350140915,1737649853056,-500.0,0.00017878,2]
[350140916,1737649853065,-500.0,0.00017878,2]
[350140917,1737649853075,-500.0,0.00017878,2]
[350140918,1737649853084,-412.55863366,0.00017878,2]
[350140919,1737649853094,-500.0,0.00017878,2]
[350140920,1737649853103,-500.0,0.00017878,2]
[350140921,1737649853113,-500.0,0.00017878,2]
[350140922,1737649853123,-500.0,0.00017878,2]
[350140923,1737649853133,-500.0,0.00017878,2]
[350140924,1737649853142,-500.0,0.00017878,2]
[350140925,1737649853152,-500.0,0.00017878,2]
[350140926,1737649853164,-500.0,0.00017878,2]
[350140927,1737649853176,-500.0,0.00017878,2]
[350140928,1737649853187,-500.0,0.00017878,2]
[350140929,1737649853196,-500.0,0.00017878,2]
[350140930,1737649853206,-500.0,0.00017878,2]
[350140931,1737649853215,-500.0,0.00017878,2]
[350140932,1737649853224,-500.0,0.00017878,2]
[350140933,1737649853233,-2076.69,0.00017878,2]
[350140934,1737649853242,-628.58,0.00017878,2]
[350140935,1737649853251,-500.0,0.00017878,2]
[350140936,1737649853261,-500.0,0.00017878,2]
[350140937,1737649853271,-533.91943995,0.00017878,2]
[350140938,1737649853280,-594.04478226,0.00017878,2]
[350140939,1737649853290,-500.0,0.00017878,2]
[350140940,1737649853300,-500.0,0.00017878,2]
[350140941,1737649853311,-500.0,0.00017878,2]
[350140942,1737649853321,-500.0,0.00017878,2]
[350140943,1737649853330,-1165.29,0.00017878,2]
[350140944,1737649853340,-500.0,0.00017878,2]
[350140945,1737649853349,-500.0,0.00017878,2]
[350140946,1737649853359,-500.0,0.00017878,2]
[350140947,1737649853368,-500.0,0.00017878,2]
[350140948,1737649853377,-502.52943397,0.00017878,2]
[350140949,1737649853387,-500.0,0.00017878,2]
[350140950,1737649853396,-658.97,0.00017878,2]
[350140951,1737649853405,-500.0,0.00017878,2]
[350140952,1737649853415,-500.0,0.00017878,2]
[350140953,1737649853424,-500.0,0.00017878,2]
[350140954,1737649853433,-500.0,0.00017878,2]
[350140955,1737649853443,-500.0,0.00017878,2]
[350140956,1737649853452,-257.95926261,0.00017878,2]
[350140957,1737649853461,-500.0,0.00017878,2]
[350140958,1737649853471,-811.15,0.00017878,2]
[350140959,1737649853480,-500.0,0.00017878,2]
[350140960,1737649853490,-500.0,0.00017878,2]
[350140961,1737649853499,-500.0,0.00017878,2]
[350140962,1737649853510,-500.0,0.00017878,2]
[350140963,1737649853524,-500.0,0.00017878,2]
[350140964,1737649853533,-829.28,0.00017878,2]
[350140965,1737649853542,-500.0,0.00017878,2]
[350140966,1737649853552,-500.0,0.00017878,2]
[350140967,1737649853562,-500.0,0.00017878,2]
[350140968,1737649853571,-1000.0,0.00017878,2]
[350140969,1737649853581,-500.0,0.00017878,2]
[350140970,1737649853590,-736.71,0.00017878,2]
[350140971,1737649853600,-500.0,0.00017878,2]
[350140972,1737649853610,-500.0,0.00017878,2]
[350140973,1737649853620,-500.0,0.00017878,2]
[350140974,1737649853630,-500.0,0.00017878,2]
[350140975,1737649853639,-500.0,0.00017878,2]
[350140976,1737649853649,-500.0,0.00017878,2]
[350140977,1737649853658,-500.0,0.00017878,2]
[350140978,1737649853668,-500.0,0.00017878,2]
[350140979,1737649853678,-500.0,0.00017878,2]
[350140980,1737649853688,-500.0,0.00017878,2]
[350140981,1737649853699,-800.07,0.00017878,2]
[350140982,1737649853709,-530.33,0.00017878,2]
[350140983,1737649853719,-500.0,0.00017878,2]
[350140984,1737649853728,-500.0,0.00017878,2]
[350140985,1737649853737,-500.0,0.00017878,2]
[350140986,1737649853747,-500.0,0.00017878,2]
[350140987,1737649853757,-500.0,0.00017878,2]
[350140988,1737649853768,-500.0,0.00017878,2]
[350140989,1737649853777,-874.38,0.00017878,2]
[350140990,1737649853787,-500.0,0.00017878,2]
[350140991,1737649853797,-500.0,0.00017878,2]
[350140992,1737649853807,-500.0,0.00017878,2]
[350140993,1737649853816,-500.0,0.00017878,2]
[350140994,1737649853826,-500.0,0.00017878,2]
[350140995,1737649853835,-500.0,0.00017878,2]
[350140996,1737649853846,-500.0,0.00017878,2]
[350140997,1737649853855,-500.0,0.00017878,2]
[350140998,1737649853864,-500.0,0.00017878,2]
[350140999,1737649853875,-500.0,0.00017878,2]
[350141000,1737649853884,-500.0,0.00017878,2]
[350141001,1737649853894,-500.0,0.00017878,2]
[350141002,1737649853904,-500.0,0.00017878,2]
[350141003,1737649853913,-500.0,0.00017878,2]
[350141004,1737649853922,-254.78307048,0.00017878,2]
[350141005,1737649853940,-245.21692952,0.00017878,2]
[350141006,1737649853950,-500.0,0.00017878,2]
[350141007,1737649853960,-500.0,0.00017878,2]
[350141008,1737649853970,-500.0,0.00017878,2]
[350141009,1737649853979,-162.41122496,0.00017878,2]
[350141010,1737649853989,-500.0,0.00017878,2]
[350141011,1737649853998,-500.0,0.00017878,2]
[350141012,1737649854007,-500.0,0.00017878,2]
[350141013,1737649854019,-500.0,0.00017878,2]
[350141014,1737649854028,-500.0,0.00017878,2]
[350141015,1737649854038,-500.0,0.00017878,2]
[350141016,1737649854048,-500.0,0.00017878,2]
[350141017,1737649854057,-500.0,0.00017878,2]
[350141018,1737649854067,-500.0,0.00017878,2]
[350141019,1737649854077,-642.43,0.00017878,2]
[350141020,1737649854086,-500.0,0.00017878,2]
[350141021,1737649854095,-500.0,0.00017878,2]
[350141022,1737649854105,-500.0,0.00017878,2]
[350141023,1737649854115,-500.0,0.00017878,2]
[350141024,1737649854125,-500.0,0.00017878,2]
[350141025,1737649854134,-500.0,0.00017878,2]
[350141026,1737649854144,-500.0,0.00017878,2]
[350141027,1737649854153,-500.0,0.00017878,2]
[350141028,1737649854162,-517.21,0.00017878,2]
[350141029,1737649854172,-500.0,0.00017878,2]
[350141030,1737649854182,-1130.41,0.00017878,2]
[350141031,1737649854191,-500.0,0.00017878,2]
[350141032,1737649854201,-500.0,0.00017878,2]
[350141033,1737649854211,-500.0,0.00017878,2]
[350141034,1737649854221,-500.0,0.00017878,2]
[350141035,1737649854235,-2840.42,0.00017878,2]
[350141036,1737649854245,-500.0,0.00017878,2]
[350141037,1737649854254,-500.0,0.00017878,2]
[350141038,1737649854265,-500.0,0.00017878,2]
[350141039,1737649854274,-500.0,0.00017878,2]
[350141040,1737649854284,-500.0,0.00017878,2]
[350141041,1737649854295,-500.0,0.00017878,2]
[350141042,1737649854305,-569.84,0.00017878,2]
[350141043,1737649854315,-500.0,0.00017878,2]
[350141044,1737649854325,-500.0,0.00017878,2]
[350141045,1737649854334,-257.25992266,0.00017878,2]
[350141046,1737649854344,-576.33,0.00017878,2]
[350141047,1737649854354,-500.0,0.00017878,2]
[350141048,1737649854364,-99.11606457,0.00017878,2]
[350141049,1737649854376,-400.88393543,0.00017878,2]
[350141050,1737649854385,-500.0,0.00017878,2]
[350141051,1737649854395,-872.83,0.00017878,2]
[350141052,1737649854404,-577.49901844,0.00017878,2]
[350141053,1737649854413,-500.0,0.00017878,2]
[350141054,1737649854423,-374.24473233,0.00017878,2]
[350141055,1737649854433,-500.0,0.00017878,2]
[350141056,1737649854443,-500.0,0.00017879,2]
[350141057,1737649854453,-500.0,0.00017879,2]
[350141058,1737649854462,-500.0,0.00017879,2]
[350141059,1737649854472,-500.0,0.00017879,2]
[350141060,1737649854482,-500.0,0.00017879,2]
[350141061,1737649854491,-500.0,0.00017879,2]
[350141062,1737649854501,-500.0,0.00017879,2]
[350141063,1737649854511,-500.0,0.00017879,2]
[350141064,1737649854527,-500.0,0.00017879,2]
[350141065,1737649854536,-500.0,0.00017879,2]
[350141066,1737649854545,-500.0,0.00017879,2]
[350141067,1737649854556,-500.0,0.00017879,2]
[350141068,1737649854566,-500.0,0.00017879,2]
[350141069,1737649854575,-319.03511334,0.00017879,2]
[350141070,1737649854587,-180.96488666,0.00017879,2]
[350141071,1737649854598,-500.0,0.00017879,2]
[350141072,1737649854607,-500.0,0.00017879,2]
[350141073,1737649854617,-500.0,0.00017879,2]
[350141074,1737649854628,-500.0,0.0001788,2]
[350141075,1737649854639,-174.06153228,0.000179,2]
[350141076,1737649854647,-1313.1570865,0.00017972,2]
[350141077,1737649854657,-161.10009745,0.00017973,2]
[350141078,1737649854666,-501.30696163,0.00017973,2]
[350141079,1737649854675,-285.00501188,0.00017973,2]
[350141080,1737649854685,-500.0,0.00017973,2]
[350141081,1737649854694,-186.5695808,0.00017978,2]
[350141082,1737649854703,-159.47,0.00017988,2]
[350141083,1737649854713,-494.75160226,0.00017999,2]
[350141084,1737649854723,-19363.32933099,0.00018,10]
[350141085,1737649854737,-75748.37897245,0.00018,10]
[350141086,1737649854747,-151.0,0.00018,2]
[350141087,1737649854756,-151.0,0.00018,2]
[350141088,1737649854768,-151.0,0.00018,2]
[350141089,1737649854778,-462.961771,0.00018,2]
[350141090,1737649854787,-462.961771,0.00018,2]
[350141091,1737649854797,-152.813287,0.00018,2]
[350141092,1737649854807,-151.0,0.00018,2]
[350141093,1737649854816,-1062.07364942,0.00018038,2]
[350141094,1737649854825,-500.0,0.00018082,2]
[350141095,1737649854836,-521.44,0.00018082,2]
[350141096,1737649854846,-376.5,0.00018082,2]
[350141097,1737649854855,-1279.29,0.00018082,2]
[350141098,1737649854864,-510.28,0.00018082,2]
[350141099,1737649854874,-947.08,0.00018082,2]
[350141100,1737649854884,-553.6,0.00018082,2]
[350141101,1737649854893,-847.08,0.00018082,2]
[350141102,1737649854903,-950.19,0.00018082,2]
[350141103,1737649854913,-595.85,0.00018082,2]
[350141104,1737649854922,-535.73,0.00018082,2]
[350141105,1737649854932,-1421.67,0.00018082,2]
[350141106,1737649855072,-500.0,0.00018082,2]
[350141107,1737649855083,-1179.67,0.00018082,2]
[350141108,1737649855093,-208.72,0.00018082,2]
[350141109,1737649855103,-500.0,0.00018082,2]
[350141110,1737649855112,-1476.14,0.00018082,2]
[350141111,1737649855121,-977.58,0.00018082,2]
[350141112,1737649855132,-578.01,0.00018082,2]
[350141113,1737649855142,-500.0,0.00018082,2]
[350141114,1737649855152,-500.0,0.00018082,2]
[350141115,1737649855161,-1107.03,0.00018082,2]
[350141116,1737649855170,-500.0,0.00018082,2]
[350141117,1737649855180,-500.0,0.00018082,2]
[350141118,1737649855189,-502.76,0.00018082,2]
[350141119,1737649855198,-500.0,0.00018082,2]
[350141120,1737649855207,-793.52,0.00018082,2]
[350141121,1737649855216,-617.15457176,0.00018122,2]
[350141122,1737649855227,-773.11,0.00018123,2]